[Event "*** Titled Tuesday Blitz"]
[Site "Chess.com"]
[Date "2020.01.07"]
[Round "4"]
[White "Pultis"]
[Black "Mikhail_Golubev"]
[Result "1-0"]
[WhiteElo "2847"]
[BlackElo "2613"]
[TimeControl "180+2"]
[EndTime "13:52:19 PST"]
[Termination "Pultis won by resignation"]

1. Nf3 {[%clk 0:03:01.9]} 1... d6 {[%clk 0:02:59]} 2. d4 {[%clk 0:02:45.5]} 2...
Nf6 {[%clk 0:02:59]} 3. c4 {[%clk 0:02:46.6]} 3... g6 {[%clk 0:03:00.1]} 4. Nc3
{[%clk 0:02:48.2]} 4... Bg7 {[%clk 0:03:01]} 5. e4 {[%clk 0:02:48.9]} 5... O-O
{[%clk 0:03:01]} 6. Be3 {[%clk 0:02:48.2]} 6... e5 {[%clk 0:02:57.5]} 7. d5
{[%clk 0:02:48.9]} 7... Na6 {[%clk 0:02:50.5]} 8. h3 {[%clk 0:02:47.2]} 8... Nh5
{[%clk 0:02:50.3]} 9. g3 {[%clk 0:02:45.2]} 9... f5 {[%clk 0:02:48.9]} 10. exf5
{[%clk 0:02:44.6]} 10... gxf5 {[%clk 0:02:49.1]} 11. Nxe5 {[%clk 0:02:45.2]}
11... Qe8 {[%clk 0:02:26.1]} 12. Be2 {[%clk 0:02:32.7]} 12... Qxe5 {[%clk
0:01:39]} 13. Bxh5 {[%clk 0:02:29.1]} 13... f4 {[%clk 0:01:39.6]} 14. gxf4
{[%clk 0:02:27.4]} 14... Rxf4 {[%clk 0:01:39.9]} 15. Be2 {[%clk 0:02:27.1]}
15... Rf8 {[%clk 0:01:37.8]} 16. Rg1 {[%clk 0:02:27.7]} 16... Qh2 {[%clk
0:01:05.1]} 17. Rxg7+ {[%clk 0:02:23.3]} 17... Kxg7 {[%clk 0:01:05.1]} 18. Qd4+
{[%clk 0:02:24.1]} 18... Qe5 {[%clk 0:01:03.3]} 19. Qh4 {[%clk 0:02:24.6]} 19...
Kg8 {[%clk 0:00:12.7]} 20. O-O-O {[%clk 0:02:15.4]} 20... Rf6 {[%clk 0:00:13.4]}
21. Rg1+ {[%clk 0:02:12.8]} 21... Rg6 {[%clk 0:00:14.2]} 22. Rxg6+ {[%clk
0:02:14.5]} 22... hxg6 {[%clk 0:00:14.6]} 23. Bd4 {[%clk 0:02:16.2]} 23... Qf5
{[%clk 0:00:12.8]} 24. Ne4 {[%clk 0:02:04.7]} 24... Nc5 {[%clk 0:00:10.5]} 25.
Qh8+ {[%clk 0:01:58.5]} 25... Kf7 {[%clk 0:00:10.7]} 26. Qg7+ {[%clk 0:02:00.4]}
1-0

[Event "*** Titled Tuesday Blitz"]
[Site "Chess.com"]
[Date "2020.01.07"]
[Round "4"]
[White "RaunakSadhwani2005"]
[Black "Induwara_IM"]
[Result "1-0"]
[WhiteElo "2738"]
[BlackElo "2364"]
[TimeControl "180+2"]
[EndTime "13:52:29 PST"]
[Termination "RaunakSadhwani2005 won by resignation"]

1. e4 {[%clk 0:03:01.9]} 1... c5 {[%clk 0:02:59.6]} 2. Nf3 {[%clk 0:03:03.3]}
2... e6 {[%clk 0:03:01.1]} 3. g3 {[%clk 0:03:03.6]} 3... a6 {[%clk 0:02:59.8]}
4. Bg2 {[%clk 0:03:04.6]} 4... b5 {[%clk 0:03:01]} 5. O-O {[%clk 0:03:05.7]}
5... Bb7 {[%clk 0:03:02.5]} 6. Re1 {[%clk 0:03:07.2]} 6... d6 {[%clk 0:03:03.5]}
7. c3 {[%clk 0:03:08.1]} 7... Nf6 {[%clk 0:03:04.2]} 8. d3 {[%clk 0:03:06.8]}
8... Nbd7 {[%clk 0:03:04.3]} 9. Nbd2 {[%clk 0:03:07.2]} 9... g6 {[%clk
0:03:05.1]} 10. Nf1 {[%clk 0:03:08.3]} 10... Bg7 {[%clk 0:03:06.1]} 11. Bf4
{[%clk 0:03:09]} 11... e5 {[%clk 0:03:03.7]} 12. Bg5 {[%clk 0:03:07.3]} 12... h6
{[%clk 0:03:04.6]} 13. Bxf6 {[%clk 0:03:08.3]} 13... Nxf6 {[%clk 0:03:06.5]} 14.
Ne3 {[%clk 0:03:09.4]} 14... O-O {[%clk 0:03:07]} 15. a4 {[%clk 0:03:08.9]}
15... Qb6 {[%clk 0:03:04.2]} 16. axb5 {[%clk 0:03:09.4]} 16... axb5 {[%clk
0:03:05]} 17. Qd2 {[%clk 0:03:10.6]} 17... Bc6 {[%clk 0:02:59.3]} 18. b4 {[%clk
0:03:10.2]} 18... cxb4 {[%clk 0:02:56.6]} 19. cxb4 {[%clk 0:03:12.1]} 19... Ra4
{[%clk 0:02:57.2]} 20. Rac1 {[%clk 0:03:12.1]} 20... Rfa8 {[%clk 0:02:56.7]} 21.
Qc3 {[%clk 0:03:13.4]} 21... Bd7 {[%clk 0:02:55.8]} 22. h3 {[%clk 0:03:09]}
22... Be6 {[%clk 0:02:53]} 23. Red1 {[%clk 0:03:00.8]} 23... Ra3 {[%clk
0:02:53.3]} 24. Qc6 {[%clk 0:03:00.1]} 24... Qxc6 {[%clk 0:02:25.4]} 25. Rxc6
{[%clk 0:03:01.7]} 25... Bf8 {[%clk 0:02:24.7]} 26. d4 {[%clk 0:03:02.2]} 26...
Nxe4 {[%clk 0:02:18.7]} 27. dxe5 {[%clk 0:03:00.7]} 27... dxe5 {[%clk 0:02:15]}
28. Nxe5 {[%clk 0:03:02.6]} 28... Nxg3 {[%clk 0:02:14.2]} 29. Rxe6 {[%clk
0:03:02.5]} 29... fxe6 {[%clk 0:02:13.3]} 30. Bxa8 {[%clk 0:03:01.5]} 30... Ne2+
{[%clk 0:02:10.4]} 31. Kf1 {[%clk 0:03:02.2]} 31... Nf4 {[%clk 0:02:03.3]} 32.
Bc6 {[%clk 0:02:57.2]} 32... Bxb4 {[%clk 0:02:01.5]} 33. Bxb5 {[%clk 0:02:58.5]}
33... Bc5 {[%clk 0:01:58.6]} 34. Rd8+ {[%clk 0:02:57.1]} 34... Kg7 {[%clk
0:01:58.9]} 35. Rd7+ {[%clk 0:02:59]} 35... Kg8 {[%clk 0:01:57.5]} 36. Kg1
{[%clk 0:02:44.9]} 36... Nxh3+ {[%clk 0:01:55.1]} 37. Kg2 {[%clk 0:02:45.6]}
37... Nf4+ {[%clk 0:01:51.6]} 38. Kf3 {[%clk 0:02:46.3]} 38... Nd5 {[%clk
0:01:48.8]} 39. Nxg6 {[%clk 0:02:45.4]} 39... Bxe3 {[%clk 0:01:44]} 40. fxe3
{[%clk 0:02:47.3]} 40... Rxe3+ {[%clk 0:01:44.8]} 41. Kf2 {[%clk 0:02:46.6]}
41... Rb3 {[%clk 0:01:42.2]} 42. Bc4 {[%clk 0:02:46.2]} 42... Rb2+ {[%clk
0:01:43.4]} 43. Kf3 {[%clk 0:02:47.6]} 43... h5 {[%clk 0:01:35.5]} 44. Ra7
{[%clk 0:02:48.1]} 44... Rb4 {[%clk 0:01:33.2]} 45. Bd3 {[%clk 0:02:47.1]} 45...
h4 {[%clk 0:01:33.3]} 46. Ne5 {[%clk 0:02:47.1]} 46... Rf4+ {[%clk 0:01:30.8]}
47. Kg2 {[%clk 0:02:46.8]} 47... Rd4 {[%clk 0:01:32]} 48. Bh7+ {[%clk
0:02:45.2]} 48... Kf8 {[%clk 0:01:31.5]} 49. Rf7+ {[%clk 0:02:45.2]} 49... Ke8
{[%clk 0:01:32.5]} 50. Bg6 {[%clk 0:02:47.1]} 50... Rd2+ {[%clk 0:01:21.8]} 51.
Rf2+ {[%clk 0:02:46]} 1-0

[Event "*** Titled Tuesday Blitz"]
[Site "Chess.com"]
[Date "2020.01.07"]
[Round "4"]
[White "2165149677570"]
[Black "AleksanderHnydiuk"]
[Result "0-1"]
[WhiteElo "2274"]
[BlackElo "2429"]
[TimeControl "180+2"]
[EndTime "13:52:29 PST"]
[Termination "AleksanderHnydiuk won by resignation"]

1. d4 {[%clk 0:03:01.9]} 1... Nf6 {[%clk 0:02:59]} 2. Nf3 {[%clk 0:03:02.7]}
2... g6 {[%clk 0:02:58.8]} 3. Bf4 {[%clk 0:03:02]} 3... Bg7 {[%clk 0:02:58.6]}
4. e3 {[%clk 0:03:03]} 4... c5 {[%clk 0:02:59.6]} 5. d5 {[%clk 0:02:41.8]} 5...
b5 {[%clk 0:02:53.3]} 6. Nc3 {[%clk 0:02:13.3]} 6... Qa5 {[%clk 0:02:40.4]} 7.
Qd2 {[%clk 0:02:02.9]} 7... b4 {[%clk 0:02:40.9]} 8. Nb5 {[%clk 0:02:04]} 8...
d6 {[%clk 0:02:38]} 9. Bxd6 {[%clk 0:00:34.9]} 9... exd6 {[%clk 0:02:29.3]} 10.
Nxd6+ {[%clk 0:00:36]} 10... Ke7 {[%clk 0:02:30.3]} 11. Nc4 {[%clk 0:00:31.4]}
11... Qd8 {[%clk 0:02:30.3]} 12. d6+ {[%clk 0:00:29]} 12... Kf8 {[%clk 0:02:31]}
13. h4 {[%clk 0:00:13.8]} 13... Bb7 {[%clk 0:02:30]} 14. O-O-O {[%clk
0:00:12.8]} 14... Nbd7 {[%clk 0:02:26.3]} 15. Ng5 {[%clk 0:00:07.4]} 15... h6
{[%clk 0:02:22.8]} 16. Nh3 {[%clk 0:00:08.9]} 16... Ne4 {[%clk 0:02:23]} 17. Qe1
{[%clk 0:00:09.7]} 17... Qxh4 {[%clk 0:02:13]} 18. f3 {[%clk 0:00:11.1]} 18...
Qxe1 {[%clk 0:02:13]} 19. Rxe1 {[%clk 0:00:12.8]} 19... Ng3 {[%clk 0:02:13.7]}
20. Rg1 {[%clk 0:00:13.5]} 20... Ba6 {[%clk 0:02:10.6]} 21. Ne5 {[%clk
0:00:07.8]} 21... Nxe5 {[%clk 0:02:03.4]} 22. Bxa6 {[%clk 0:00:08.2]} 22... Rd8
{[%clk 0:02:02.9]} 23. f4 {[%clk 0:00:06.6]} 23... Ng4 {[%clk 0:02:00.9]} 24. d7
{[%clk 0:00:03.7]} 24... Nf6 {[%clk 0:01:49.6]} 25. Bc8 {[%clk 0:00:04.7]} 25...
Nxd7 {[%clk 0:01:48.6]} 26. Bxd7 {[%clk 0:00:06.1]} 26... Rxd7 {[%clk
0:01:50.5]} 0-1

[Event "*** Titled Tuesday Blitz"]
[Site "Chess.com"]
[Date "2020.01.07"]
[Round "4"]
[White "nurgyulsalimova"]
[Black "Kosche007"]
[Result "0-1"]
[WhiteElo "2593"]
[BlackElo "2380"]
[TimeControl "180+2"]
[EndTime "13:52:34 PST"]
[Termination "Kosche007 won by resignation"]

1. c4 {[%clk 0:03:01.9]} 1... g6 {[%clk 0:03:00.3]} 2. Nc3 {[%clk 0:03:00.9]}
2... Bg7 {[%clk 0:03:01.3]} 3. g3 {[%clk 0:03:02.3]} 3... Nf6 {[%clk 0:03:01.7]}
4. Bg2 {[%clk 0:03:03.6]} 4... O-O {[%clk 0:03:02.9]} 5. Nf3 {[%clk 0:03:04.8]}
5... d6 {[%clk 0:03:03.9]} 6. O-O {[%clk 0:03:06]} 6... Nc6 {[%clk 0:03:05]} 7.
d3 {[%clk 0:03:03.6]} 7... Nh5 {[%clk 0:03:03.2]} 8. Bd2 {[%clk 0:03:02.4]} 8...
f5 {[%clk 0:03:01.2]} 9. Rb1 {[%clk 0:03:02.7]} 9... a5 {[%clk 0:03:02.5]} 10.
a3 {[%clk 0:03:03.5]} 10... f4 {[%clk 0:03:03.8]} 11. b4 {[%clk 0:03:03.7]}
11... axb4 {[%clk 0:03:05.7]} 12. axb4 {[%clk 0:03:05.6]} 12... Bg4 {[%clk
0:03:06.7]} 13. b5 {[%clk 0:03:04.8]} 13... Nd4 {[%clk 0:03:07.7]} 14. Nxd4
{[%clk 0:02:05]} 14... Bxd4 {[%clk 0:03:09.6]} 15. Kh1 {[%clk 0:02:05.8]} 15...
Qd7 {[%clk 0:02:37.2]} 16. Bxb7 {[%clk 0:02:02]} 16... fxg3 {[%clk 0:02:31.7]}
17. fxg3 {[%clk 0:01:59.7]} 17... Nxg3+ {[%clk 0:02:17.1]} 18. hxg3 {[%clk
0:01:57.4]} 18... Bf3+ {[%clk 0:02:17.9]} 19. Kh2 {[%clk 0:01:54.9]} 19... Bxb7
{[%clk 0:02:17.7]} 20. e3 {[%clk 0:01:50.7]} 20... Bxc3 {[%clk 0:01:51.6]} 21.
Bxc3 {[%clk 0:01:51.5]} 21... Ra2+ {[%clk 0:01:52]} 22. Rb2 {[%clk 0:01:52.5]}
22... Rxb2+ {[%clk 0:01:40.2]} 23. Bxb2 {[%clk 0:01:54.4]} 23... Rxf1 {[%clk
0:01:40.5]} 24. Qxf1 {[%clk 0:01:56.3]} 24... Qg4 {[%clk 0:01:35.1]} 25. Bc3
{[%clk 0:01:23.8]} 25... Qh5+ {[%clk 0:01:14.9]} 26. Kg1 {[%clk 0:01:24.8]}
26... Qh1+ {[%clk 0:01:13.8]} 27. Kf2 {[%clk 0:01:25.8]} 27... Qf3+ {[%clk
0:01:14.4]} 28. Ke1 {[%clk 0:01:25.3]} 28... Qxe3+ {[%clk 0:01:11.2]} 29. Qe2
{[%clk 0:01:22.7]} 29... Qc1+ {[%clk 0:01:06]} 30. Kf2 {[%clk 0:01:22.7]} 30...
Qxc3 {[%clk 0:01:03.7]} 31. Qe6+ {[%clk 0:01:23.4]} 31... Kf8 {[%clk 0:01:02.8]}
0-1

[Event "*** Titled Tuesday Blitz"]
[Site "Chess.com"]
[Date "2020.01.07"]
[Round "4"]
[White "coolthing"]
[Black "hazy13"]
[Result "1-0"]
[WhiteElo "2347"]
[BlackElo "2207"]
[TimeControl "180+2"]
[EndTime "13:52:34 PST"]
[Termination "coolthing won by checkmate"]

1. e4 {[%clk 0:03:01.9]} 1... c5 {[%clk 0:03:01]} 2. c3 {[%clk 0:03:02.9]} 2...
Nf6 {[%clk 0:03:01.6]} 3. e5 {[%clk 0:03:04]} 3... Nd5 {[%clk 0:03:03]} 4. d4
{[%clk 0:03:05.4]} 4... cxd4 {[%clk 0:03:04.9]} 5. Nf3 {[%clk 0:03:06.5]} 5...
Nc6 {[%clk 0:03:05.9]} 6. Bc4 {[%clk 0:03:07.8]} 6... Nb6 {[%clk 0:03:06.6]} 7.
Bb3 {[%clk 0:03:09.2]} 7... g6 {[%clk 0:03:07.7]} 8. cxd4 {[%clk 0:03:09.5]}
8... Bg7 {[%clk 0:03:08.1]} 9. O-O {[%clk 0:03:08.8]} 9... O-O {[%clk 0:03:09]}
10. Re1 {[%clk 0:03:07.8]} 10... d6 {[%clk 0:03:10.2]} 11. e6 {[%clk 0:02:51.1]}
11... fxe6 {[%clk 0:02:54.4]} 12. Bxe6+ {[%clk 0:02:50.7]} 12... Bxe6 {[%clk
0:02:49.4]} 13. Rxe6 {[%clk 0:02:52.6]} 13... Rxf3 {[%clk 0:02:46]} 14. gxf3
{[%clk 0:02:51.4]} 14... Nxd4 {[%clk 0:02:47.1]} 15. Re4 {[%clk 0:02:40.2]}
15... Qd7 {[%clk 0:02:39.1]} 16. Rxd4 {[%clk 0:02:36.9]} 16... Bxd4 {[%clk
0:02:34.5]} 17. Qxd4 {[%clk 0:02:38.8]} 17... e5 {[%clk 0:02:19.8]} 18. Qg4
{[%clk 0:02:36.2]} 18... Qc6 {[%clk 0:02:06.6]} 19. Nc3 {[%clk 0:02:36.3]} 19...
Rf8 {[%clk 0:02:08.2]} 20. Bh6 {[%clk 0:02:28]} 20... Rxf3 {[%clk 0:02:02]} 21.
Rd1 {[%clk 0:02:24.3]} 21... Rf6 {[%clk 0:01:41]} 22. Ne4 {[%clk 0:02:22.1]}
22... Rf4 {[%clk 0:01:16.1]} 23. Qe6+ {[%clk 0:01:37.9]} 23... Kh8 {[%clk
0:01:17]} 24. Bxf4 {[%clk 0:01:37.2]} 24... exf4 {[%clk 0:00:43.9]} 25. Ng5
{[%clk 0:01:29]} 25... Nc4 {[%clk 0:00:21.1]} 26. Qf6+ {[%clk 0:01:28.5]} 26...
Kg8 {[%clk 0:00:20.1]} 27. Qf7+ {[%clk 0:01:30.4]} 27... Kh8 {[%clk 0:00:20.5]}
28. Qxh7# {[%clk 0:01:32.3]} 1-0

[Event "*** Titled Tuesday Blitz"]
[Site "Chess.com"]
[Date "2020.01.07"]
[Round "4"]
[White "Manukyan_Artak"]
[Black "mohssenbinaddi"]
[Result "1-0"]
[WhiteElo "2482"]
[BlackElo "2222"]
[TimeControl "180+2"]
[EndTime "13:52:38 PST"]
[Termination "Manukyan_Artak won by resignation"]

1. e4 {[%clk 0:03:01.9]} 1... c6 {[%clk 0:03:00.2]} 2. d4 {[%clk 0:03:02.5]}
2... d5 {[%clk 0:03:02.1]} 3. e5 {[%clk 0:03:04.1]} 3... Bf5 {[%clk 0:03:02.6]}
4. c4 {[%clk 0:03:05.4]} 4... e6 {[%clk 0:03:03.6]} 5. Nc3 {[%clk 0:03:05.2]}
5... Ne7 {[%clk 0:03:03.1]} 6. Nf3 {[%clk 0:03:05.6]} 6... Nd7 {[%clk
0:03:02.8]} 7. Nh4 {[%clk 0:03:05]} 7... dxc4 {[%clk 0:02:54.2]} 8. Bxc4 {[%clk
0:03:04.3]} 8... Nb6 {[%clk 0:02:54.9]} 9. Bb3 {[%clk 0:03:05.2]} 9... Bg6
{[%clk 0:02:48.1]} 10. O-O {[%clk 0:03:03.2]} 10... Nf5 {[%clk 0:02:48.3]} 11.
Nxf5 {[%clk 0:03:04.2]} 11... Bxf5 {[%clk 0:02:48.9]} 12. g4 {[%clk 0:03:05.4]}
12... Bg6 {[%clk 0:02:48.6]} 13. f4 {[%clk 0:03:06.5]} 13... h6 {[%clk
0:02:38.5]} 14. f5 {[%clk 0:03:03.3]} 14... exf5 {[%clk 0:02:19.1]} 15. gxf5
{[%clk 0:03:01.8]} 15... Bh7 {[%clk 0:02:17.3]} 16. e6 {[%clk 0:02:17.1]} 16...
fxe6 {[%clk 0:02:01.4]} 17. Bxe6 {[%clk 0:02:04.4]} 17... Qh4 {[%clk 0:01:57.3]}
18. Rf4 {[%clk 0:01:54.4]} 18... Qf6 {[%clk 0:01:19.3]} 19. Ne4 {[%clk
0:01:51.8]} 19... Qe7 {[%clk 0:01:15.2]} 20. Qh5+ {[%clk 0:01:38.2]} 20... g6
{[%clk 0:01:02]} 21. fxg6 {[%clk 0:01:28.6]} 21... Qxe6 {[%clk 0:01:02.8]} 22.
g7+ {[%clk 0:01:13.1]} 22... Bg6 {[%clk 0:00:58.9]} 23. gxh8=Q {[%clk
0:01:12.7]} 23... Bxh5 {[%clk 0:00:45]} 24. Qxf8+ {[%clk 0:01:09.9]} 24... Kd7
{[%clk 0:00:46]} 25. Nc5+ {[%clk 0:01:10.9]} 1-0

[Event "*** Titled Tuesday Blitz"]
[Site "Chess.com"]
[Date "2020.01.07"]
[Round "4"]
[White "lucasran"]
[Black "jefferyx"]
[Result "0-1"]
[WhiteElo "2664"]
[BlackElo "2918"]
[TimeControl "180+2"]
[EndTime "13:52:48 PST"]
[Termination "jefferyx won by resignation"]

1. Nf3 {[%clk 0:03:01.9]} 1... g6 {[%clk 0:02:57.6]} 2. d4 {[%clk 0:03:02.3]}
2... Bg7 {[%clk 0:02:59.5]} 3. c4 {[%clk 0:03:03.5]} 3... d6 {[%clk 0:02:59.9]}
4. Nc3 {[%clk 0:03:04.7]} 4... Nc6 {[%clk 0:03:01.2]} 5. d5 {[%clk 0:03:03.3]}
5... Ne5 {[%clk 0:03:01.4]} 6. Nxe5 {[%clk 0:03:04.6]} 6... Bxe5 {[%clk
0:03:03.3]} 7. e4 {[%clk 0:03:06]} 7... e6 {[%clk 0:03:03.9]} 8. Be2 {[%clk
0:03:04.8]} 8... Nf6 {[%clk 0:03:05]} 9. Qc2 {[%clk 0:03:03]} 9... exd5 {[%clk
0:02:57.1]} 10. cxd5 {[%clk 0:03:01.3]} 10... O-O {[%clk 0:02:55.7]} 11. O-O
{[%clk 0:02:50.6]} 11... Re8 {[%clk 0:02:56.8]} 12. Bg5 {[%clk 0:02:04.2]} 12...
h6 {[%clk 0:02:57.8]} 13. Bxh6 {[%clk 0:01:39.5]} 13... Nxe4 {[%clk 0:02:58.7]}
14. Nxe4 {[%clk 0:01:24.3]} 14... Qh4 {[%clk 0:02:59.3]} 15. f4 {[%clk
0:00:29.8]} 15... Bd4+ {[%clk 0:03:00]} 16. Kh1 {[%clk 0:00:31.3]} 16... Qxh6
{[%clk 0:03:00]} 17. Rad1 {[%clk 0:00:32.3]} 17... Qg7 {[%clk 0:02:45.8]} 18. b3
{[%clk 0:00:32.5]} 18... Bf5 {[%clk 0:02:46.4]} 19. Bd3 {[%clk 0:00:33.6]} 19...
Re7 {[%clk 0:02:44.6]} 20. Ng3 {[%clk 0:00:33.7]} 20... Bxd3 {[%clk 0:02:29.2]}
21. Qxd3 {[%clk 0:00:35.6]} 21... Bb6 {[%clk 0:02:30.5]} 22. f5 {[%clk
0:00:36.9]} 22... Re3 {[%clk 0:02:31.3]} 23. Qc4 {[%clk 0:00:28]} 23... Rxg3
{[%clk 0:02:08.4]} 24. hxg3 {[%clk 0:00:28.5]} 24... g5 {[%clk 0:02:10.1]} 25.
Qg4 {[%clk 0:00:20.7]} 25... Qf6 {[%clk 0:02:11.7]} 26. Qh3 {[%clk 0:00:05.2]}
26... Kg7 {[%clk 0:02:12.8]} 27. g4 {[%clk 0:00:06.6]} 27... Rh8 {[%clk
0:02:13.5]} 28. Rf3 {[%clk 0:00:06.4]} 28... Rxh3+ {[%clk 0:02:08.4]} 29. gxh3
{[%clk 0:00:06.1]} 29... Qe5 {[%clk 0:02:05.5]} 30. Rfd3 {[%clk 0:00:03.6]}
30... Qe4+ {[%clk 0:02:05.7]} 31. Kh2 {[%clk 0:00:04.9]} 31... Qe2+ {[%clk
0:02:00.8]} 32. Kh1 {[%clk 0:00:05.9]} 32... Be3 {[%clk 0:02:02.1]} 0-1

[Event "*** Titled Tuesday Blitz"]
[Site "Chess.com"]
[Date "2020.01.07"]
[Round "4"]
[White "semchik73"]
[Black "SmirnovAlexandrA"]
[Result "0-1"]
[WhiteElo "2318"]
[BlackElo "2180"]
[TimeControl "180+2"]
[EndTime "13:52:51 PST"]
[Termination "SmirnovAlexandrA won by resignation"]

1. Nf3 {[%clk 0:03:01.1]} 1... f5 {[%clk 0:02:59.8]} 2. e4 {[%clk 0:03:01.5]}
2... fxe4 {[%clk 0:02:59.3]} 3. Ng5 {[%clk 0:03:02.9]} 3... Nf6 {[%clk
0:02:59.5]} 4. d3 {[%clk 0:03:03.7]} 4... e5 {[%clk 0:03:00]} 5. dxe4 {[%clk
0:03:04.7]} 5... h6 {[%clk 0:02:57.6]} 6. Nf3 {[%clk 0:03:05.5]} 6... Nc6 {[%clk
0:02:57.3]} 7. Nc3 {[%clk 0:03:05.7]} 7... Bb4 {[%clk 0:02:57]} 8. Bc4 {[%clk
0:03:06.4]} 8... d6 {[%clk 0:02:57.5]} 9. O-O {[%clk 0:03:02.7]} 9... Bg4 {[%clk
0:02:57.9]} 10. h3 {[%clk 0:02:57.9]} 10... Bh5 {[%clk 0:02:58.9]} 11. a3 {[%clk
0:02:49.8]} 11... Bxc3 {[%clk 0:02:58.9]} 12. bxc3 {[%clk 0:02:51]} 12... Qd7
{[%clk 0:03:00.3]} 13. Be2 {[%clk 0:02:30.8]} 13... g5 {[%clk 0:02:55.7]} 14.
Nxe5 {[%clk 0:02:28.1]} 14... Nxe5 {[%clk 0:02:48.6]} 15. Bxh5+ {[%clk
0:02:28.2]} 15... Nxh5 {[%clk 0:02:46]} 16. Qxh5+ {[%clk 0:02:28.2]} 16... Qf7
{[%clk 0:02:46.2]} 17. Qxf7+ {[%clk 0:02:26.9]} 17... Nxf7 {[%clk 0:02:46.3]}
18. f4 {[%clk 0:02:28.2]} 18... O-O {[%clk 0:02:41.6]} 19. fxg5 {[%clk
0:02:23.4]} 19... Nxg5 {[%clk 0:02:43.5]} 20. Bxg5 {[%clk 0:02:23.2]} 20... hxg5
{[%clk 0:02:43.7]} 21. Rxf8+ {[%clk 0:02:21.7]} 21... Rxf8 {[%clk 0:02:42.3]}
22. Rf1 {[%clk 0:02:23]} 22... Re8 {[%clk 0:02:43.3]} 23. Re1 {[%clk 0:02:22]}
23... d5 {[%clk 0:02:40.7]} 24. e5 {[%clk 0:02:21.8]} 24... Kf7 {[%clk
0:02:40.8]} 25. Kf2 {[%clk 0:02:22.3]} 25... Ke6 {[%clk 0:02:41.3]} 26. Kf3
{[%clk 0:02:23]} 26... Rf8+ {[%clk 0:02:40.8]} 27. Kg4 {[%clk 0:02:09.9]} 27...
Rf2 {[%clk 0:02:41.1]} 28. g3 {[%clk 0:02:10.5]} 28... Rxc2 {[%clk 0:02:41.6]}
29. Kxg5 {[%clk 0:02:11.3]} 29... Rxc3 {[%clk 0:02:42.8]} 30. Kg4 {[%clk
0:02:11.9]} 30... d4 {[%clk 0:02:40.1]} 31. h4 {[%clk 0:02:12.9]} 31... d3
{[%clk 0:02:40]} 32. h5 {[%clk 0:02:13.9]} 32... d2 {[%clk 0:02:41.1]} 33. Rd1
{[%clk 0:02:15]} 33... Rd3 {[%clk 0:02:40]} 34. Kf4 {[%clk 0:02:15.2]} 34... c5
{[%clk 0:02:40.6]} 35. h6 {[%clk 0:02:14.5]} 35... Kf7 {[%clk 0:02:36.9]} 36. h7
{[%clk 0:02:13.9]} 36... Kg7 {[%clk 0:02:37.7]} 37. e6 {[%clk 0:02:13]} 37...
Rd8 {[%clk 0:02:28.4]} 38. Ke5 {[%clk 0:02:03]} 38... c4 {[%clk 0:02:28.6]} 39.
Rh1 {[%clk 0:01:53]} 39... Kh8 {[%clk 0:02:19.3]} 40. e7 {[%clk 0:01:52.1]}
40... Re8 {[%clk 0:02:17.8]} 41. Kd4 {[%clk 0:01:52]} 41... Rxe7 {[%clk
0:02:16.7]} 42. Kxc4 {[%clk 0:01:53.3]} 42... Rxh7 {[%clk 0:02:16.7]} 43. Rd1
{[%clk 0:01:54.5]} 43... Rg7 {[%clk 0:01:33.4]} 44. Rxd2 {[%clk 0:01:54.3]}
44... Rxg3 {[%clk 0:01:33.5]} 45. Rd8+ {[%clk 0:01:54.5]} 45... Kg7 {[%clk
0:01:33.5]} 46. Rd7+ {[%clk 0:01:55.4]} 46... Kf6 {[%clk 0:01:34.4]} 47. Rxb7
{[%clk 0:01:55.7]} 47... Rxa3 {[%clk 0:01:34.4]} 48. Kb5 {[%clk 0:01:50.2]}
48... Rb3+ {[%clk 0:01:33]} 49. Kc6 {[%clk 0:01:51.2]} 49... Rxb7 {[%clk
0:01:33.4]} 50. Kxb7 {[%clk 0:01:52.4]} 50... a5 {[%clk 0:01:35.2]} 0-1

[Event "*** Titled Tuesday Blitz"]
[Site "Chess.com"]
[Date "2020.01.07"]
[Round "4"]
[White "FearlessKing64"]
[Black "Bagirova"]
[Result "0-1"]
[WhiteElo "2275"]
[BlackElo "2123"]
[TimeControl "180+2"]
[EndTime "13:52:52 PST"]
[Termination "Bagirova won by resignation"]

1. e4 {[%clk 0:03:01.7]} 1... c5 {[%clk 0:02:58.5]} 2. Nf3 {[%clk 0:03:02.2]}
2... d6 {[%clk 0:02:59.2]} 3. d4 {[%clk 0:03:03.4]} 3... cxd4 {[%clk 0:03:00.7]}
4. Nxd4 {[%clk 0:03:05.3]} 4... Nf6 {[%clk 0:03:02.2]} 5. f3 {[%clk 0:03:07]}
5... a6 {[%clk 0:03:04.1]} 6. c4 {[%clk 0:03:08.2]} 6... e6 {[%clk 0:03:05.5]}
7. Nc3 {[%clk 0:03:09.1]} 7... Be7 {[%clk 0:03:07.1]} 8. Be2 {[%clk 0:03:10.6]}
8... O-O {[%clk 0:03:08.5]} 9. O-O {[%clk 0:03:11.8]} 9... Qc7 {[%clk
0:03:09.7]} 10. Be3 {[%clk 0:03:12.9]} 10... Nc6 {[%clk 0:03:10.9]} 11. Rc1
{[%clk 0:03:14]} 11... Nxd4 {[%clk 0:02:57]} 12. Bxd4 {[%clk 0:03:15.9]} 12...
Bd7 {[%clk 0:02:58.9]} 13. Qd2 {[%clk 0:03:16.4]} 13... Bc6 {[%clk 0:02:58.6]}
14. Nd5 {[%clk 0:03:16.2]} 14... Bxd5 {[%clk 0:02:57.5]} 15. cxd5 {[%clk
0:03:17.2]} 15... Qd7 {[%clk 0:02:55.8]} 16. dxe6 {[%clk 0:03:05.3]} 16... fxe6
{[%clk 0:02:55.8]} 17. Rfd1 {[%clk 0:03:03.9]} 17... Rac8 {[%clk 0:02:53.4]} 18.
Bc4 {[%clk 0:03:00.2]} 18... Kh8 {[%clk 0:02:48.7]} 19. Bb3 {[%clk 0:02:47.7]}
19... Nh5 {[%clk 0:02:38.5]} 20. Rxc8 {[%clk 0:02:26]} 20... Qxc8 {[%clk
0:02:34.8]} 21. Qh6 {[%clk 0:02:13.9]} 21... Nf6 {[%clk 0:02:25.2]} 22. Qe3
{[%clk 0:01:51.4]} 22... e5 {[%clk 0:02:17.4]} 23. Bc3 {[%clk 0:01:40.3]} 23...
Nh5 {[%clk 0:02:12.4]} 24. Rc1 {[%clk 0:01:35.9]} 24... Nf4 {[%clk 0:02:05.8]}
25. g3 {[%clk 0:01:26.3]} 25... Qh3 {[%clk 0:01:51.9]} 26. gxf4 {[%clk
0:01:05.1]} 26... Rxf4 {[%clk 0:01:45.9]} 27. Bd1 {[%clk 0:00:55.5]} 27... Rg4+
{[%clk 0:01:33.8]} 28. fxg4 {[%clk 0:00:23.1]} 28... Qxe3+ {[%clk 0:01:34.3]}
0-1